Cogmind - Beta 13 *** ADVENTURER MODE // 2024.06.06 @ 17:57:55 Player: ME Result: Destroyed by P-70 Sage with High-powered Shock Rifle Performance ------------- Evolutions (5) 2500 Regions Visited (4) 800 Robots Destroyed (89) 445 Value Destroyed (3412) 3412 Prototype IDs (16) 320 Alien Tech Used (0) 0 Bonus (255) 255 TOTAL SCORE: 7732 Bonus ------- High Alert Combat Kills 207 Follower Combat Kills 48 Cogmind --------- Core Integrity 0/1000 Matter 160/300 Energy 78/100 System Corruption 18% Temperature Cool (0) Movement Core (150) Ox2 Location -5/Factory Parts ------- > --- POWER (2) -------- (None) > --- PROPULSION (4) --- (None) > --- UTILITY (5) ------ (None) > --- WEAPON (6) ------- Disruptor Cannon > --- INVENTORY (5) ---- Improved Launcher Guidance Computer Authchip [R/Combat] Authchip [Power] Authchip [Armor] Peak State ------------ > --- POWER ------------ Light Nuclear Core Fission-Angular Core > --- PROPULSION ------- Carbon-FC Exoskeleton > --- UTILITY ---------- Armored Scrap Engine Advanced Cooling System Small Storage Unit > --- WEAPON ----------- Gatling Laser Heavy Phase Cannon Directed Phase Construct/C Energy Caster Construct/G Hpw. Electro Tesla Construct/G > --- INVENTORY -------- Improved Cooling System Improved Launcher Guidance Computer Improved Launcher Guidance Computer Authchip [R/Combat] Authchip [R/Combat] Authchip [Power] Authchip [Armor] Great Axe [Rating: 81] Favorites ----------- Power Light Ion Engine Engine Light Ion Engine Power Core Constructs Propulsion Armored Treads Treads Armored Treads Leg Aluminum Leg Utility Small Storage Unit Device Armored Scrap Engine Storage Small Storage Unit Processor Visual Processing Unit Protection Propulsion Shielding Weapon Assault Rifle Energy Gun Gatling Laser Energy Cannon Heavy Phase Cannon Ballistic Gun Assault Rifle Ballistic Cannon Bore Cannon Launcher Smartbomb Launcher Slashing Weapon Great Axe Build | -11 -10 -10 -7 -5 ------- Run | Yrd Mat Sub Rec Fac Slots Evolved 10 | . . . . 10 Power 1 | . . . . 1 Propulsion 2 | . . . . 2 Utility 3 | . . . . 3 Weapon 4 | . . . . 4 Parts Attached 46 | 7 9 8 7 15 Power 9 | 2 . 2 1 4 Engine 7 | 2 . 2 1 2 Core 2 | . . . . 2 Reactor . | . . . . . Propulsion 13 | 2 7 2 2 . Treads 2 | . . . 2 . Leg 11 | 2 7 2 . . Wheel . | . . . . . Hover . | . . . . . Flight . | . . . . . Utility 9 | 1 1 1 1 5 Device 4 | . . 1 1 2 Storage 1 | 1 . . . . Processor 1 | . 1 . . . Hackware . | . . . . . Protection 3 | . . . . 3 Artifact . | . . . . . Weapon 15 | 2 1 3 3 6 Energy Gun 1 | . . . 1 . Energy Cannon 3 | . . . . 3 Ballistic Gun 7 | 2 1 2 1 1 Ballistic Cannon 2 | . . 1 1 . Launcher 1 | . . . . 1 Special Weapon . | . . . . . Impact Weapon . | . . . . . Slashing Weapon 1 | . . . . 1 Piercing Weapon . | . . . . . Special Melee Weapon . | . . . . . Unidentified Prototypes 1 | . . . . 1 Parts Lost 28 | . . 2 1 25 Power 7 | . . 1 . 6 Propulsion 6 | . . . 1 5 Utility 4 | . . . . 4 Weapon 11 | . . 1 . 10 Highest Loss Streak 6 | . . 1 1 6 To Critical Strikes . | . . . . . Average Slot Usage (%) 75 | . 98 91 98 51 Engine 9 | . 14 11 14 4 Core 1 | . . . . 2 Treads 3 | . . . 10 4 Leg 14 | . 27 28 16 1 Hover 1 | . . . . 2 Device 8 | . . 8 13 8 Storage 9 | . 14 14 14 3 Processor 2 | . 12 . . . Energy Gun 5 | . . . 8 8 Energy Cannon 1 | . . . . 4 Ballistic Gun 12 | . 28 15 14 4 Ballistic Cannon 3 | . . 11 5 . Naked Turns 10 | . . . . 10 Heaviest Build 49 | 13 14 26 22 49 Greatest Support 73 | 20 20 40 40 73 Greatest Overweight (x) 5 | 1 4 . 5 3 Average Overweight (x) . | . . . . . Largest Inventory Capacity 8 | 8 8 8 8 8 Average Capacity 7 | 7 8 8 8 7 Most Carried 8 | 2 8 8 8 8 Average Carried 6 | 1 5 7 7 7 Final Capacity 8 | 8 8 8 8 5 Final Carried 8 | 2 8 7 8 4 Scrap Engine Consumption 64 | . . . . 64 Constructs Created 7 | . . . . 7 Constructs Modified 15 | . . . . 15 Class Distribution -------------------- 39% | Mutant 27% | Scavenger-Mutant 16% | Construct 10% | Scavenger-Tank 3% | Gunner Dominant Class ---------------- Mutant | -10/Materials Scavenger-Mutant | -10/Subcaves Scavenger-Mutant | -7/Recycling Construct | -5/Factory Resources | -11 -10 -10 -7 -5 ----------- Run | Yrd Mat Sub Rec Fac Matter Collected 1795 | 269 303 380 281 562 Remotely . | . . . . . Salvage Created 4234 | . 407 372 592 2863 Parts 187 | . 34 23 17 113 Haulers Intercepted . | . . . . . Recyclers Shooed 3 | . 1 . 1 1 Parts Field Recycled . | . . . . . Retrieved Matter . | . . . . . Parts Self-Destructed 8 | . . 8 . . Prevented . | . . . . . Kills | -11 -10 -10 -7 -5 ------- Run | Yrd Mat Sub Rec Fac Combat Hostiles Destroyed 63 | . 12 6 3 42 Guns 41 | . 12 4 2 23 Cannons 17 | . . 2 1 14 AOE 4 | . . . . 4 Classes Destroyed 14 | . 4 3 . 7 Worker 5 | . . . . 5 Builder 3 | . . . . 3 Recycler 11 | . 1 . 7 3 Operator 1 | . . . . 1 Turret 2 | . . 2 . . Watcher 4 | . 2 . . 2 Swarmer 12 | . 6 2 . 4 Grunt 27 | . 6 . . 21 Brawler 2 | . . . . 2 Duelist 1 | . . . . 1 Sentry 5 | . . 1 3 1 Hunter 2 | . . . . 2 Programmer 11 | . . . . 11 Subdweller 3 | . . 3 . . Best Kill Streak 6 | . 5 3 6 5 Combat Bots Only 3 | . 3 2 1 3 Max Kills in Single Turn 2 | . 2 2 1 2 Gunslinging 1 | . 1 . . . Exploded 1 | . . . . 1 Melee . | . . . . . Uniques/NPCs Destroyed . | . . . . . Combat | -11 -10 -10 -7 -5 -------- Run | Yrd Mat Sub Rec Fac Hostile Shots Fired 647 | . 48 80 54 465 Missed 183 | . 16 27 18 122 Damage Taken 6170 | . 294 638 216 5022 Core 1188 | . 62 77 41 1008 Absorbed by Shields . | . . . . . Redirected to Shielding 51 | . . . . 51 Ignored by Resistances 1763 | . 95 185 72 1411 Regen/Repaired (Parts) 498 | . . . . 498 Core Remaining (%) 64 | 100 . . 28 . Volleys Fired 224 | . 37 43 24 120 Largest 5 | . 2 2 2 5 Hottest 372 | . 40 87 108 372 Shots Fired 548 | . 74 85 44 345 Gun 401 | . 74 56 33 238 Cannon 138 | . . 29 11 98 Launcher 9 | . . . . 9 Special . | . . . . . Kinetic 280 | . 74 85 35 86 Thermal 242 | . . . 9 233 Explosive 9 | . . . . 9 Electromagnetic 17 | . . . . 17 Robot Hit Streak 44 | . 17 19 22 44 Robot Miss Streak 8 | . 2 2 3 8 Penetration Max 1 | . . . . 1 Secondary Targets 3 | . 3 . . . Max Gunslinging Chain 1 | . 1 . . . Shots Hit Robots 416 | . 61 63 35 257 Core Hits 242 | . 24 21 29 168 Critical Kills 8 | . 1 4 2 1 Critical Parts Destroyed 4 | . . 1 2 1 Critical Strikes 18 | . 1 6 4 7 Burn 1 | . . . . 1 Destroy 13 | . 1 6 4 2 Sever 4 | . . . . 4 Melee Attacks 17 | . . . . 17 Impact . | . . . . . Slashing 17 | . . . . 17 Piercing . | . . . . . Sneak Attacks 1 | . . . . 1 Combat Hostiles . | . . . . . Follow-up Attacks . | . . . . . Damage Inflicted 10816 | . 740 931 811 8334 Guns 5960 | . 739 622 604 3995 Cannons 3077 | . . 309 207 2561 Explosions 1085 | . . . . 1085 Melee 672 | . . . . 672 Ramming 22 | . 1 . . 21 Kinetic 3529 | . 739 931 595 1264 Thermal 5415 | . . . 216 5199 Explosive 830 | . . . . 830 Electromagnetic 348 | . . . . 348 Impact . | . . . . . Slashing 672 | . . . . 672 Piercing . | . . . . . Highest Corruption 18 | . . . . 18 Average Corruption 6 | . . . . 6 Corruption Purged . | . . . . . Corruption Blocked . | . . . . . Effects 42 | . . . . 42 Message Errors 8 | . . . . 8 Matter Fused 12 | . . . . 12 Heat Flow Errors 1 | . . . . 1 Energy Discharges 7 | . . . . 7 Parts Rejected 2 | . . . . 2 Data Loss (minor) 7 | . . . . 7 Data Loss (major) 4 | . . . . 4 Alerts 1 | . . . . 1 Overload Shots . | . . . . . Overflow Damage 424 | . . . 17 407 Projectiles 68 | . . . 17 51 Explosions 278 | . . . . 278 Melee 78 | . . . . 78 Knockbacks 5 | . . 4 1 . Impact . | . . . . . Kinetic 5 | . . 4 1 . Secondary . | . . . . . Self-Inflicted Damage 35 | . . . . 35 Shots 2 | . . . . 2 Rammed 2 | . . . . 2 Targets Rammed 3 | . 1 . . 2 Kicked 1 | . 1 . . . Crushed . | . . . . . Highest Temperature 660 | . 2 14 198 660 Average Temperature 106 | . 2 4 90 112 Received Heat Transfer 1849 | . 144 141 102 1462 Effects 9 | . . . . 9 Shutdowns 4 | . . . . 4 Short Circuit 1 | . . . . 1 Damage (minor) 1 | . . . . 1 Damage (major) 3 | . . . . 3 Siege Activations . | . . . . . Robots Corrupted 1 | . . . . 1 Combat Hostiles 1 | . . . . 1 Parts Fried 2 | . . . . 2 Impact Corruptions . | . . . . . Robots Melted . | . . . . . Combat Hostiles . | . . . . . Parts Melted 21 | . . . 6 15 Heat Transferred 6893 | . . . 500 6393 Parts Sabotaged . | . . . . . Parts Stolen . | . . . . . Parts Stripped . | . . . . . Power Chain Reactions . | . . . . . Alert | -11 -10 -10 -7 -5 ------- Run | Yrd Mat Sub Rec Fac Peak Influence 520 | . 245 . 187 520 Initial 113 | . . . 113 10 Average 205 | . 125 . 81 289 Maximum Alert Level 2 | . 1 . . 2 Low Security (%) 54 | 100 79 . 100 26 Level 1 32 | . 20 . . 49 Level 2 13 | . . . . 24 Level 3 . | . . . . . Level 4 . | . . . . . Level 5 . | . . . . . High Security . | . . . . . Max Security . | . . . . . Squads Dispatched 12 | . 2 . . 10 Investigation 3 | . 2 . . 1 Extermination 5 | . . . . 5 Reinforcement 1 | . . . . 1 Assault 2 | . . . . 2 Garrison 1 | . . . . 1 Intercept . | . . . . . Searches Triggered . | . . . . . Construction Impeded . | . . . . . Haulers Reinforced . | . . . . . Active Scanning Responses . | . . . . . Cargo Convoy Interrupts . | . . . . . Stealth | -11 -10 -10 -7 -5 --------- Run | Yrd Mat Sub Rec Fac Distress Signals 2 | . 1 . . 1 Communications Jammed . | . . . . . Distress Signals . | . . . . . Times Spotted 102 | . 14 29 3 56 Peak Tracking Total 6 | . 3 6 1 6 Tactical Retreats 2 | . . 2 . . Traps | -11 -10 -10 -7 -5 ------- Run | Yrd Mat Sub Rec Fac Traps Triggered 5 | . 4 . . 1 Indirectly . | . . . . . Trap Hack Attempts . | . . . . . Triggered . | . . . . . Disarmed . | . . . . . Reprogrammed . | . . . . . Reused . | . . . . . Traps Extracted . | . . . . . Installed . | . . . . . Triggered . | . . . . . Machines | -11 -10 -10 -7 -5 ---------- Run | Yrd Mat Sub Rec Fac Machines Disabled 10 | . . 2 . 8 Max in Single Turn 2 | . . 1 . 2 Garrison Access 1 | . . . . 1 Machines Repaired . | . . . . . Machines Dismantled . | . . . . . Machines Sabotaged . | . . . . . Overloaded Fab Kills . | . . . . . Hacking | -11 -10 -10 -7 -5 --------- Run | Yrd Mat Sub Rec Fac Machines Accessed 18 | . 8 . 8 2 Terminals 12 | . 8 . 3 1 Fabricators . | . . . . . Repair Stations . | . . . . . Recycling Units 6 | . . . 5 1 Scanalyzers . | . . . . . Garrison Access . | . . . . . Total Hacks 37 | . 16 . 16 5 Successful 20 | . 6 . 12 2 Failed 17 | . 10 . 4 3 Catastrophic 4 | . 3 . . 1 Database Lockouts . | . . . . . Manual 1 | . . . . 1 Terminals 26 | . 16 . 7 3 Fabricators . | . . . . . Repair Stations . | . . . . . Recycling Units 11 | . . . 9 2 Scanalyzers . | . . . . . Garrison Access . | . . . . . Terminal Hacks 12 | . 6 . 5 1 Record 4 | . . . 3 1 Part Schematic 1 | . . . 1 . Prototype ID Bank 5 | . 4 . 1 . Branch Access Points 1 | . 1 . . . Locate Traps 1 | . 1 . . . Fabricator Hacks . | . . . . . Repair Station Hacks . | . . . . . Recycling Unit Hacks 8 | . . . 7 1 Report Inventory 5 | . . . 5 . Retrieve Matter 1 | . . . 1 . Retrieve Components 2 | . . . 1 1 Scanalyzer . | . . . . . Garrison Access Hacks . | . . . . . Unauthorized Hacks . | . . . . . Terminals . | . . . . . Fabricators . | . . . . . Repair Stations . | . . . . . Recycling Units . | . . . . . Scanalyzers . | . . . . . Garrison Access . | . . . . . Data Cores Recovered . | . . . . . Used . | . . . . . Hacking Detections 10 | . 5 . 3 2 Full Trace Events 2 | . 1 . . 1 Feedback Events 1 | . . . . 1 Corruption 1 | . . . . 1 Feedback Blocked . | . . . . . Robot Schematics Acquired . | . . . . . Robots Built . | . . . . . Authchips . | . . . . . Time . | . . . . . Total Robot Build Rating . | . . . . . Part Schematics Acquired 1 | . . . 1 . Parts Built . | . . . . . Authchips . | . . . . . Time . | . . . . . Total Part Build Rating . | . . . . . Parts Repaired . | . . . . . Time . | . . . . . Parts Recycled . | . . . . . Recycled Matter . | . . . . . Retrieved Matter . | . . . . . Retrieved Components 12 | . . . 2 10 Parts Scanalyzed . | . . . . . Part Schematics Acquired . | . . . . . Parts Damaged . | . . . . . Bothacking | -11 -10 -10 -7 -5 ------------ Run | Yrd Mat Sub Rec Fac Used RIF Installer . | . . . . . Robots Hacked . | . . . . . Non-combat . | . . . . . Combat . | . . . . . Robot Hacks Applied . | . . . . . Relay Couplers Released 1 | . . . . 1 Machine Destruction 1 | . . . . 1 Fabnet Peak Effective % . | . . . . . Robots Rewired . | . . . . . Allies Hacked . | . . . . . Hacks Repelled . | . . . . . Allies | -11 -10 -10 -7 -5 -------- Run | Yrd Mat Sub Rec Fac Total Allies 3 | . . . . 3 Largest Group 3 | . . . . 3 Highest-Rated Group 93 | . . . . 93 Highest-Rated Ally 31 | . . . . 31 Total Orders . | . . . . . Ally Attacks 20 | . . . . 20 Total Damage 377 | . . . . 377 Kills 1 | . . . . 1 Allies Corrupted . | . . . . . Allies Melted 1 | . . 1 . . Intel | -11 -10 -10 -7 -5 ------- Run | Yrd Mat Sub Rec Fac Robot Analysis Total . | . . . . . Derelict Logs Recovered . | . . . . . Drone Launches . | . . . . . Drone Recoveries . | . . . . . Exploration | -11 -10 -10 -7 -5 ------------- Run | Yrd Mat Sub Rec Fac Turns Passed 4630 | 116 785 948 712 2069 Spaces Moved 2516 | 77 533 667 454 785 Core 43 | 7 1 . 2 33 Treads 464 | . . . 140 324 Legs 1821 | 70 532 667 312 240 Wheels . | . . . . . Hover 188 | . . . . 188 Flight . | . . . . . Fastest Speed 50 | 50 120 120 120 50 Average Speed 140 | 120 121 120 136 176 Slowest Speed 309 | 190 250 120 300 309 Overloaded Moves . | . . . . . Propulsion Burnouts . | . . . . . Robots Hopped . | . . . . . Cave-ins Triggered . | . . . . . Exploration Rate (%) 49 | 5 89 43 93 18 Regions Visited 4 Branch Regions 2 Pre-discovered Areas . | . . . . . Known Exits Taken . | . . . . . Unknown Exits Taken 4 | 1 1 1 1 . Scrap Searched . | . . . . . Spaces Dug . | . . . . . Terrain Destroyed 124 | . . 9 8 107 Melee . | . . . . . Projectile 31 | . . 9 8 14 AOE 93 | . . . . 93 Terrain Rammed . | . . . . . Walls Destroyed . | . . . . . Machines Disabled . | . . . . . Actions | -11 -10 -10 -7 -5 --------- Run | Yrd Mat Sub Rec Fac Total 3103 | 96 593 732 504 1178 Wait 263 | 12 12 3 3 233 Move 2512 | 76 532 666 453 785 Hop . | . . . . . Pick Up 14 | 1 2 3 6 2 Fast Attach 29 | 6 5 3 5 10 Attach 5 | . . 2 . 3 Detach . | . . . . . Swap 12 | 1 4 3 2 2 Drop 24 | . . 9 11 4 Fire 224 | . 37 43 24 120 Melee 17 | . . . . 17 Ram 1 | . . . . 1 Kick 1 | . 1 . . . Crush 1 | . . . . 1 Escape Stasis . | . . . . . Rewire . | . . . . . Trap . | . . . . . Miscellaneous . | . . . . . Route ------- -11/Scrapyard -10/Materials (discovered 5 exits: [*Mat x3] / Min / [*Sub]) -10/Subcaves -7/Recycling -5/Factory (discovered 1 exit: [*Fac]) History --------- Turn | Location | Event 6 | -11/Scrapyard | Discovered new exit (range 13) 117 | -11/Scrapyard | Entered Materials 201 | -10/Materials | Discovered new exit (range 15) 285 | -10/Materials | Identified exit to Mines 309 | -10/Materials | Build established: Mutant 506 | -10/Materials | Discovered new exit (range 10) 514 | -10/Materials | Discovered new exit (range 18) 665 | -10/Materials | Discovered new exit (range 18) 902 | -10/Materials | Entered Subcaves 989 | -10/Subcaves | Ambushed by swarm of Subdwellers 1177 | -10/Subcaves | Core integrity fell below 50% 1236 | -10/Subcaves | A swath of the cavern ceiling suddenly collapsed 1307 | -10/Subcaves | Build established: Scavenger-Mutant 1516 | -10/Subcaves | Shifting Twisted Machinery released Riot Gun 1530 | -10/Subcaves | Shifting Twisted Machinery released Flamer 1814 | -10/Subcaves | Discovered new exit (range 15) 1850 | -10/Subcaves | Entered Recycling 1858 | -7/Recycling | Found Scrap Engine 2190 | -7/Recycling | Discovered new exit (range 7) 2562 | -7/Recycling | Entered Factory 2562 | -5/Factory | Evolved 10 slots: Power x1, Propulsion x2, Utility x3, Weapon x4 2599 | -5/Factory | Build established: Mutant 2943 | -5/Factory | Discovered new exit (range 11) 2972 | -5/Factory | Build established: Scavenger-Tank 3096 | -5/Factory | Allied Derelicts emerged from ambush trap array 3192 | -5/Factory | Lost 3 allies 3714 | -5/Factory | Garrison activated, responded to threat 3732 | -5/Factory | Build established: Construct 4062 | -5/Factory | First assault squad dispatched 4070 | -5/Factory | Lost 3 parts (1p2w) 4228 | -5/Factory | Lost 4 parts (1p1u2w) 4364 | -5/Factory | Core integrity fell below 50% 4434 | -5/Factory | Lost 6 parts (1p1n2u2w) 4507 | -5/Factory | Core integrity fell below 20% 4535 | -5/Factory | Build established: Mutant 4571 | -5/Factory | System corruption reached 10% 4618 | -5/Factory | Lost 3 parts (1p1n1w) 4631 | -5/Factory | Destroyed by P-70 Sage with High-powered Shock Rifle Last Messages --------------- Destroyed Antigrav System. Destroyed Welding Torch. U-05 Engineer destroyed. The unstable cave ceiling collapses. Lgt. Neutrino Core destroyed. Destroyed Mic. Fission Core. The unstable cave ceiling collapses. System corrupted: Matter fused (-5). Destroyed Hpw. Shock Rifle. Carbon-FC Exoskeleton destroyed. P-70 Sage destroyed. The unstable cave ceiling collapses. Smartbomb Launcher destroyed. Acquired Unknown Energy Cannon. Identified Disruptor Cannon. System corrupted: Disruptor Cannon rejected. Acquired Disruptor Cannon. Construction Platform disabled. Terminal disabled. 66SQ=BV7RK,ZUIL2#CSC Map ----- +----------------------------------------------------+ | ????????????????????????????????????????????? | | ????????????????????????????????????????????? | | ????????????????????????????????????????????? | | ????????????????????????????????????????????? | | ????????????????????????????????????????????? | | ????????????????????????????????????????????? | | ????????????????????????????????????????????? | | ????????????????????????????????????????????? | | ????????????????????????????????????????????? | | ????????????????????????????????????????????? | | ????????????????????????????????????????????? | | ????????????????????????????????????????????? | | ????????????????????????????????????????????? | | ????????????????????????????????????????????? | | ????????????????????????????????????????????? | | ????????????????????????????????????????????? | | ????????????????????????????????????????????? | | ????????????????????????????????????????????? | | ????????????????????????????????????????????? | | ???????????????##############???????????????? | | ???????????????# #???????????????? | | ???????????????# """"""" #???????????????? | | ???????????????# """"""" #???????????????? | | ???????????????# """"""" #???????????????? | | ???????????????# """"""" #???????????????? | | ????????????#### @ p #???????????????? | | ????????????# + """"""" #???????????????? | | ????????????# ## """""" #???????????????? | | ????????????# ## """"""" "#??????? ??### | | ????????????# ## """" "" T#?????? ??# " | | ??###########+## #?????# ??# " | | ??# # #?????# #?# " | | ??# #+###+############?# #?#| | | ??# # #?# #?# | | ??# """" "" " # #?# #?# | | ??# """" """ # """ ### #?# | | ??# """" """" """ #?# " | | ??# """" " """ #?# " | | ??# " " ! #?# " | | ??# " #?# | | ??# " """" """" #?# | | ??# # "%"" """" ##### | | ??# ""%" """" | | ??##### # # # ##+## | | ????# ## " / ! "" "" | | ????## # / ! ""F" | | ?????## # """ !# =!! """ | | ?????####### ##### """ # %% % | | ?????????#####???# """ # % | | ?????????????????# ####"""T"""# T####### | +----------------------------------------------------+ Best States ------------- Heat Dissipation 71 Coolant Potential 50 Energy Generation 23 Energy Capacity 359 Matter Stores 300 Matter Capacity 300 Sight Range 18 Terrain Scan Density 10 Resistance: KI 20 Resistance: TH 20 Resistance: EX 20 Resistance: EM 20 Resistance: I 20 Resistance: S 20 Resistance: P 20 Propulsion Shielding 33 Evasion (%) 55 Recoil Reduction 2 Offensive Hacking 10 Authchip Count 4 Item Schematics ----------------- Cmb. Airjet | -7/Recycling | Hacked Robot Schematics ------------------ None Fabricated ------------ Nothing Alien Tech Used ----------------- None Achievements -------------- None Challenges ------------ None Game ------ Seed MeleeSalvageTerminator Manual? 0 Play Time 00:35:10 Cumulative 23.0 hours Start 2024.06.06 @ 17:25:17 End 2024.06.06 @ 17:57:55 Sessions 1 Manual Loads 0 Difficulty Adventurer Special Mode None Game No. 33 Rogue 0 Adventurer 33 Explorer 0 Win Type - Total 0 Types 0/0/0/0/0/0/0/0/0 Lore% 20 Gallery% 29 Achievement% 25 Wizard Run 0 Options --------- Layout 1 ASCII 0 Keyboard 0 Movement Numpad Keybinds 0 Fullscreen 1 Font 24/Smallcaps Map View 50x35 Zoom Use 0% Tactical HUD 0 Map Filters NONE Filters NONE Steam 1 RUN: cef0c730-586a-4331-9e7f-98c0fa2aa993